bitfinex-derivatives/quotes_BTCF0:USTF0_20250528
["timestamp","ask_amount","ask_price","bid_price","bid_amount"]
[1748416169066,0.9050918,108980.0,108970.0,0.0695]
[1748416171066,0.9050918,108980.0,108970.0,0.004]
[1748416171364,0.86681922,108980.0,108970.0,0.004]
[1748416171566,0.9050896,108980.0,108970.0,0.004]
[1748416171862,0.1834463,108970.0,108960.0,0.51227654]
[1748416172063,0.40025081,108970.0,108960.0,0.61603753]
[1748416172460,0.40101403,108970.0,108960.0,0.61603753]
[1748416172661,0.43928436,108970.0,108960.0,0.61603753]
[1748416173168,0.43928436,108970.0,108960.0,0.62203753]
[1748416174688,0.31781065,108970.0,108960.0,0.62203753]
[1748416174876,0.43928436,108970.0,108960.0,0.62203753]
[1748416177976,0.40101403,108970.0,108960.0,0.62203753]
[1748416178672,0.40101403,108970.0,108960.0,0.81203753]
[1748416180673,0.40101403,108970.0,108960.0,0.86827654]
[1748416181370,0.43930767,108970.0,108960.0,0.86827654]
[1748416181875,0.40101403,108970.0,108960.0,0.86827654]
[1748416182474,0.43931288,108970.0,108960.0,0.86827654]
[1748416184379,0.43931336,108970.0,108960.0,0.86827654]
[1748416184870,0.44007658,108970.0,108960.0,0.86827654]
[1748416185075,0.44170738,108970.0,108960.0,0.86827654]
[1748416187870,0.40340805,108970.0,108960.0,0.86827654]
[1748416190085,0.51111563,108970.0,108960.0,0.86827654]
[1748416190376,0.47280805,108970.0,108960.0,0.86827654]
[1748416190863,0.47729014,108970.0,108960.0,0.86827654]
[1748416193374,0.37729014,108970.0,108960.0,0.86827654]
[1748416193781,0.5156069,108970.0,108960.0,0.86827654]
[1748416193973,0.47706343,108970.0,108960.0,0.86827654]
[1748416194171,0.50806343,108970.0,108960.0,0.86827654]
[1748416194477,0.38681643,108970.0,108960.0,0.86827654]
[1748416194773,0.50806343,108970.0,108960.0,0.86827654]
[1748416194978,0.54638104,108970.0,108960.0,0.86827654]
[1748416196279,0.44638104,108970.0,108960.0,0.86827654]
[1748416196484,0.54638104,108970.0,108960.0,0.86827654]
[1748416197272,0.54631824,108970.0,108960.0,0.86827654]
[1748416199378,0.42507124,108970.0,108960.0,0.86827654]
[1748416199570,0.54631824,108970.0,108960.0,0.86827654]
[1748416201076,0.44631824,108970.0,108960.0,0.86827654]
[1748416201273,0.54631824,108970.0,108960.0,0.86827654]
[1748416202779,0.51531824,108970.0,108960.0,0.98952354]
[1748416202980,0.41543824,108970.0,108960.0,0.98952354]
[1748416203181,0.48443824,108970.0,108960.0,0.98952354]
[1748416203791,0.36323124,108970.0,108960.0,1.65503354]
[1748416203987,0.26307124,108970.0,108960.0,1.53378654]
[1748416204181,0.23109124,108970.0,108960.0,1.65503354]
[1748416204381,0.19271643,108970.0,108960.0,1.66925481]
[1748416204695,0.19283643,108970.0,108960.0,1.66925481]
[1748416204887,0.19271643,108970.0,108960.0,1.66925481]
[1748416205083,0.19283643,108970.0,108960.0,1.66925481]
[1748416205885,0.19283643,108970.0,108960.0,1.54796593]
[1748416207884,0.19271643,108970.0,108960.0,1.54796593]
[1748416208086,0.19283643,108970.0,108960.0,1.54796593]
[1748416209384,0.19283643,108970.0,108960.0,1.36628903]
[1748416212579,0.19283673,108970.0,108960.0,1.46368903]
[1748416212997,0.19283673,108970.0,108960.0,1.88648903]
[1748416214484,0.00939013,108970.0,108960.0,1.88648903]
[1748416214787,0.22553673,108970.0,108960.0,1.88648903]
[1748416216295,0.04209013,108970.0,108960.0,1.88648903]
[1748416216495,0.22553683,108970.0,108960.0,1.88648903]
[1748416217895,0.04209013,108970.0,108960.0,1.88648903]
[1748416219297,0.22553683,108970.0,108960.0,1.98496903]
[1748416221200,0.04209013,108970.0,108960.0,1.98496903]
[1748416224300,0.22553693,108970.0,108960.0,1.98460903]
[1748416224503,0.25743693,108970.0,108960.0,1.98460903]
[1748416225403,0.25743693,108970.0,108960.0,1.56268903]
[1748416225591,0.25743693,108970.0,108960.0,1.98456903]
[1748416225994,0.07399013,108970.0,108960.0,1.98456903]
[1748416227304,0.25743693,108970.0,108960.0,1.98456903]
[1748416228005,0.25743693,108970.0,108960.0,2.10578147]
[1748416228803,0.29033693,108970.0,108960.0,2.10578147]
[1748416230001,0.29033693,108970.0,108960.0,1.68390147]
[1748416230201,0.29033693,108970.0,108960.0,2.10542147]
[1748416230499,0.29033693,108970.0,108960.0,1.61950147]
[1748416230704,0.29033693,108970.0,108960.0,2.02693638]
[1748416230905,0.29033693,108970.0,108960.0,2.04098147]
[1748416231408,0.29033693,108970.0,108960.0,2.10268147]
[1748416232607,0.29033693,108970.0,108960.0,2.14312084]
[1748416239321,0.29033693,108970.0,108960.0,1.42152084]
[1748416239616,0.29033693,108970.0,108960.0,2.07266056]
[1748416240406,0.29033693,108970.0,108960.0,2.07198056]
[1748416241009,0.29033693,108970.0,108960.0,1.35038056]
[1748416241210,0.29033693,108970.0,108960.0,2.07198056]
[1748416241907,0.29033693,108970.0,108960.0,2.12083882]
[1748416242107,0.29033693,108970.0,108960.0,2.21970645]
[1748416242609,0.41154571,108970.0,108960.0,1.86673063]
[1748416242923,0.41154571,108970.0,108960.0,1.85607238]
[1748416243116,0.41154571,108970.0,108960.0,1.9267369]
[1748416244405,0.29033693,108970.0,108960.0,1.9267369]
[1748416244606,0.29033693,108970.0,108960.0,2.12850394]
[1748416244918,0.29021693,108970.0,108960.0,2.19510394]
[1748416245214,0.29033693,108970.0,108960.0,2.19510394]
[1748416245814,0.29021693,108970.0,108960.0,2.12443942]
[1748416246022,0.29033693,108970.0,108960.0,2.14620587]
[1748416247413,0.29033693,108970.0,108960.0,2.19505993]
[1748416247613,0.29033693,108970.0,108960.0,2.14620167]
[1748416248303,0.29033693,108970.0,108960.0,1.90378411]
[1748416248509,0.29033693,108970.0,108960.0,2.14620167]
[1748416248814,0.29033693,108970.0,108960.0,2.02499289]
[1748416250218,0.29033693,108970.0,108960.0,2.14620167]
[1748416253117,0.29033693,108970.0,108960.0,2.02499289]
[1748416253821,0.29033693,108970.0,108960.0,1.95437238]
[1748416254817,0.29033693,108970.0,108960.0,2.07558116]
[1748416255523,0.29033693,108970.0,108960.0,2.14620167]
[1748416261624,0.29033693,108970.0,108960.0,1.95437238]
[1748416262623,0.29033693,108970.0,108960.0,2.02498697]
[1748416265529,0.29033693,108970.0,108960.0,1.50518697]
[1748416265833,0.29033693,108970.0,108960.0,2.02374697]
[1748416266223,0.07399013,108970.0,108960.0,2.14495575]
[1748416266418,0.00927013,108970.0,108960.0,2.07434116]
[1748416266624,0.00939013,108970.0,108960.0,2.40669691]
[1748416266822,0.00927013,108970.0,108960.0,2.70253714]
[1748416267021,0.24962739,108990.0,108980.0,0.18343]
[1748416267228,0.24689538,108990.0,108980.0,2.12845263]
[1748416267524,0.24689538,108990.0,108980.0,2.22385263]
[1748416267723,0.24689538,108990.0,108980.0,2.29437698]
[1748416267940,0.24689538,108990.0,108980.0,2.19558929]
[1748416268242,0.24889538,108990.0,108980.0,2.19558929]
[1748416268831,0.27959538,108990.0,108980.0,2.19558929]
[1748416269833,0.28059538,108990.0,108980.0,2.19558929]
[1748416270530,0.09718228,108990.0,108980.0,2.19558929]
[1748416270932,0.28059538,108990.0,108980.0,2.19558929]
[1748416271639,0.06648228,108990.0,108980.0,2.19558929]
[1748416271820,0.06660228,108990.0,108980.0,2.19558929]
[1748416272020,0.03612,108990.0,108980.0,2.19558929]
[1748416272250,0.03612,108990.0,108980.0,2.12506494]
[1748416272436,0.03612,108990.0,108980.0,2.22385263]
[1748416272641,0.06702,108990.0,108980.0,2.22385263]
[1748416273436,0.06702,108990.0,108980.0,2.12506494]
[1748416273733,0.06702,108990.0,108980.0,2.19546342]
[1748416273937,0.09842,108990.0,108980.0,2.19546342]
[1748416274131,0.09842,108990.0,108980.0,2.19542342]
[1748416274538,0.2818331,108990.0,108980.0,2.19542342]
[1748416275038,0.40304188,108990.0,108980.0,1.15569586]
[1748416275239,0.52425066,108990.0,108980.0,0.87877187]
[1748416275738,0.52425066,108990.0,108980.0,0.5039103]
[1748416275931,0.52431668,108990.0,108980.0,0.3139103]
[1748416277430,0.2818331,108990.0,108980.0,0.4973403]
[1748416277635,0.40307489,108990.0,108980.0,0.6473403]
[1748416277937,0.40307489,108990.0,108980.0,0.4639103]
[1748416278742,0.40307489,108990.0,108980.0,0.42165738]
[1748416279329,0.40307489,108990.0,108980.0,0.4639188]
[1748416280337,0.40755698,108990.0,108980.0,0.4639188]
[1748416282836,0.40755698,108990.0,108980.0,0.27764023]
[1748416291050,0.28631519,108990.0,108980.0,0.27764023]
[1748416291251,0.40755698,108990.0,108980.0,0.27764023]
[1748416294155,0.40755698,108990.0,108980.0,0.46107003]
[1748416294345,0.40755698,108990.0,108980.0,0.27764023]
[1748416295246,0.40755698,108990.0,108980.0,0.46107003]
[1748416299158,0.40755698,108990.0,108980.0,0.27764023]
[1748416299459,0.40755698,108990.0,108980.0,0.46107003]
[1748416300852,0.40755698,108990.0,108980.0,0.49297003]
[1748416301461,0.40743698,108990.0,108980.0,0.49297003]
[1748416301660,0.40755698,108990.0,108980.0,0.49297003]
[1748416301860,0.40743698,108990.0,108980.0,0.49297003]
[1748416302059,0.40755698,108990.0,108980.0,0.85377003]
[1748416302652,0.40755698,108990.0,108980.0,0.81150861]
[1748416303558,0.44540651,108990.0,108980.0,0.81150861]
[1748416304666,0.44544643,108990.0,108980.0,0.86786235]
[1748416305050,0.44544643,108990.0,108980.0,0.68443255]
[1748416305256,0.44544643,108990.0,108980.0,0.86786225]
[1748416307659,0.44544643,108990.0,108980.0,0.68443255]
[1748416308769,0.44545217,108990.0,108980.0,0.68443255]
[1748416308967,0.40755698,108990.0,108980.0,0.68443255]
[1748416309167,0.44545215,108990.0,108980.0,0.68443255]
[1748416309370,0.32421036,108990.0,108980.0,0.86786235]
[1748416309672,0.44545215,108990.0,108980.0,0.68443255]
[1748416309879,0.56669394,108990.0,108980.0,0.65253255]
[1748416311075,0.92749394,108990.0,108980.0,0.29173255]
[1748416311278,0.92749394,108990.0,108980.0,0.05635374]
[1748416313171,0.93690174,108990.0,108980.0,0.05635374]
[1748416314082,1.31690174,108990.0,108980.0,0.05635374]
[1748416314580,0.1834297,108980.0,108970.0,0.51136507]
[1748416314783,0.39917149,108980.0,108970.0,0.44011643]
[1748416315087,0.43705491,108980.0,108970.0,0.44011643]
[1748416315577,0.79785491,108980.0,108970.0,0.18376269]
[1748416315772,0.79785491,108980.0,108970.0,0.22614184]
[1748416316178,0.79785491,108980.0,108970.0,0.20251668]
[1748416316876,0.79885491,108980.0,108970.0,0.20251668]
[1748416317274,0.76097149,108980.0,108970.0,0.20251668]
[1748416317477,0.79883897,108980.0,108970.0,0.20251668]
[1748416323278,0.79883897,108980.0,108970.0,0.16013753]
[1748416324789,0.76097149,108980.0,108970.0,0.16013753]
[1748416325482,0.79879506,108980.0,108970.0,0.16013753]
[1748416325888,0.1834465,108970.0,108960.0,0.04369647]
[1748416326084,0.76158567,108970.0,108960.0,0.34184778]
[1748416327090,0.76158567,108970.0,108960.0,0.37574778]
[1748416327480,0.40078567,108970.0,108960.0,0.37674778]
[1748416327677,0.40078567,108970.0,108960.0,0.3349]
[1748416327983,0.40080025,108970.0,108960.0,0.3349]
[1748416330790,0.40080025,108970.0,108960.0,0.3651]
[1748416332895,0.40080025,108970.0,108960.0,0.396]
[1748416333790,0.21814388,108970.0,108960.0,0.82197614]
[1748416333994,0.21814388,108970.0,108960.0,1.23918856]
[1748416334591,0.33952025,108970.0,108960.0,0.99667582]
[1748416334896,0.33952025,108970.0,108960.0,1.11793219]
[1748416335496,0.33952025,108970.0,108960.0,1.23918856]
[1748416335889,0.21826388,108970.0,108960.0,0.96760825]
[1748416336091,0.21826388,108970.0,108960.0,1.16788447]
[1748416340904,0.21826388,108970.0,108960.0,1.04667582]
[1748416341206,0.22274597,108970.0,108960.0,1.04667582]
[1748416343601,0.22274597,108970.0,108960.0,1.16788447]
[1748416345302,0.22274597,108970.0,108960.0,1.04667582]
[1748416347910,0.22274597,108970.0,108960.0,1.46719582]
[1748416348205,0.25604597,108970.0,108960.0,1.46719582]
[1748416348613,0.37725462,108970.0,108960.0,1.46719582]
[1748416348798,0.37725462,108970.0,108960.0,1.28373242]
[1748416349103,0.41025462,108970.0,108960.0,1.46719582]
[1748416351811,0.25604597,108970.0,108960.0,1.46719582]
[1748416354813,0.28634597,108970.0,108960.0,1.46719582]
[1748416357911,0.40757464,108970.0,108960.0,1.58842449]
[1748416359617,0.40757464,108970.0,108960.0,0.86321242]
[1748416359810,0.40757464,108970.0,108960.0,1.46719582]
[1748416360312,0.40757464,108970.0,108960.0,1.40609582]
[1748416362520,0.40757464,108970.0,108960.0,1.22263242]
[1748416362721,0.40757464,108970.0,108960.0,1.37319582]
[1748416362921,0.40757464,108970.0,108960.0,1.47111582]
[1748416364124,0.40757464,108970.0,108960.0,1.50321582]
[1748416364513,0.40757464,108970.0,108960.0,0.86713242]
[1748416364709,0.40757464,108970.0,108960.0,0.50633242]
[1748416365014,0.44546674,108970.0,108960.0,0.50633242]
[1748416367328,0.56669541,108970.0,108960.0,0.50633242]
[1748416367925,0.44546674,108970.0,108960.0,0.50633242]
[1748416368825,0.44546042,108970.0,108960.0,0.50633242]
[1748416369436,0.56668909,108970.0,108960.0,0.40841242]
[1748416370134,0.44546042,108970.0,108960.0,0.40841242]
[1748416370330,0.92748909,108970.0,108960.0,0.40841242]
[1748416370631,0.92748909,108970.0,108960.0,0.11841242]
[1748416370932,1.34796909,108970.0,108960.0,0.10440338]
[1748416371730,1.36153171,108970.0,108960.0,0.10440338]
[1748416372042,0.1834802,108950.0,108940.0,0.07245812]
[1748416372228,0.66560611,108950.0,108940.0,0.19193603]
[1748416372429,0.79896752,108950.0,108940.0,0.19193603]
[1748416372629,0.80081621,108950.0,108940.0,0.19193603]
[1748416373333,0.80164628,108950.0,108940.0,0.19293603]
[1748416374332,1.22524628,108950.0,108940.0,0.19293603]
[1748416374634,1.22524628,108950.0,108940.0,0.00393603]
[1748416376736,1.24430706,108950.0,108940.0,0.00393603]
[1748416377436,1.24422792,108950.0,108940.0,0.00393603]
[1748416381844,1.24419784,108950.0,108940.0,0.00393603]
[1748416385849,1.24867993,108950.0,108940.0,0.00393603]
[1748416386037,1.24866947,108950.0,108940.0,0.00393603]
[1748416388349,1.24866947,108950.0,108940.0,0.01393603]
[1748416390356,1.60866947,108950.0,108940.0,3e-08]
[1748416391950,1.72998846,108950.0,108940.0,3e-08]
[1748416392143,1.73183715,108950.0,108940.0,3e-08]
[1748416392845,1.43183715,108950.0,108940.0,3e-08]
[1748416393049,1.43193739,108950.0,108940.0,3e-08]
[1748416393246,0.183497,108940.0,108930.0,0.03123753]
[1748416393446,0.8824419,108940.0,108930.0,0.23123753]
[1748416393647,0.88355157,108940.0,108930.0,0.23123753]
[1748416393850,0.88429059,108940.0,108930.0,0.23123753]
[1748416394254,0.92289422,108940.0,108930.0,0.23123753]
[1748416394455,0.92489422,108940.0,108930.0,0.23123753]
[1748416395351,0.92789422,108940.0,108930.0,0.23123753]
[1748416395655,0.80657177,108940.0,108930.0,0.23123753]
[1748416395859,0.80657177,108940.0,108930.0,0.29533753]
[1748416396150,0.76796814,108940.0,108930.0,0.29533753]
[1748416396666,0.80659011,108940.0,108930.0,0.29533753]
[1748416396952,0.92800555,108940.0,108930.0,0.29533753]
[1748416397257,0.92791256,108940.0,108930.0,0.29533753]
[1748416397552,0.92799507,108940.0,108930.0,0.23123753]
[1748416397755,0.92791256,108940.0,108930.0,0.23123753]
[1748416398756,0.92794104,108940.0,108930.0,0.23123753]
[1748416399351,0.92794104,108940.0,108930.0,0.20013753]
[1748416399555,0.92794104,108940.0,108930.0,0.23013753]
[1748416400446,0.92794104,108940.0,108930.0,0.20013753]
[1748416401054,0.93242313,108940.0,108930.0,0.02565983]
[1748416401251,0.93250005,108940.0,108930.0,0.02565983]
[1748416401450,0.1835139,108930.0,108920.0,0.45946584]
[1748416401754,0.43852007,108930.0,108920.0,0.81946584]
[1748416402346,0.43852007,108930.0,108920.0,0.87583301]
[1748416402547,0.43852007,108930.0,108920.0,0.81946584]
[1748416402753,0.43952007,108930.0,108920.0,0.81946584]
[1748416402954,0.44060158,108930.0,108920.0,0.81946584]
[1748416403354,0.40186962,108930.0,108920.0,0.87583301]
[1748416403759,0.4406036,108930.0,108920.0,0.81946584]
[1748416404355,0.4406036,108930.0,108920.0,0.87583301]
[1748416406457,0.31928115,108930.0,108920.0,1.05936371]
[1748416406760,0.4406036,108930.0,108920.0,0.87583301]
[1748416407356,0.33916962,108930.0,108920.0,1.19484099]
[1748416407556,0.25655733,108930.0,108920.0,1.25145069]
[1748416407754,0.37787978,108930.0,108920.0,1.18092869]
[1748416408158,0.22627733,108930.0,108920.0,1.18092869]
[1748416408663,0.22627733,108930.0,108920.0,1.30225114]
[1748416408965,0.18756717,108930.0,108920.0,1.67696344]
[1748416409156,0.18744717,108930.0,108920.0,1.67696344]
[1748416409356,0.18756717,108930.0,108920.0,1.67696344]
[1748416409658,0.18744717,108930.0,108920.0,1.67696344]
[1748416409865,0.18756717,108930.0,108920.0,1.67696344]
[1748416410159,0.18756717,108930.0,108920.0,1.55559446]
[1748416412067,0.18756717,108930.0,108920.0,1.48507246]
[1748416413169,0.18756717,108930.0,108920.0,1.54161938]
[1748416414859,0.30884309,108930.0,108920.0,0.78061276]
[1748416415063,0.30884309,108930.0,108920.0,0.41981276]
[1748416415064,0.52401901,108930.0,108920.0,0.41981276]
[1748416415365,0.1835307,108920.0,108910.0,0.42161622]
[1748416415572,0.36609969,108920.0,108910.0,0.65891622]
[1748416415770,0.36794838,108920.0,108910.0,0.51891622]
[1748416415956,0.36794838,108920.0,108910.0,0.66891622]
[1748416417674,0.36794838,108920.0,108910.0,0.6123693]
[1748416418872,0.37194838,108920.0,108910.0,0.6123693]
[1748416419071,0.37494838,108920.0,108910.0,0.6123693]
[1748416419268,0.37494838,108920.0,108910.0,0.7823693]
[1748416419765,0.73565531,108920.0,108910.0,0.05654692]
[1748416420073,0.1835476,108910.0,108900.0,0.0621049]
[1748416420269,0.78098647,108910.0,108900.0,0.1521049]
[1748416420462,0.78197221,108910.0,108900.0,0.1521049]
[1748416420662,1.08197221,108910.0,108900.0,0.1521049]
[1748416420970,0.59989629,108910.0,108900.0,0.1521049]
[1748416421164,0.72327245,108910.0,108900.0,0.2149249]
[1748416421373,0.72639245,108910.0,108900.0,0.2149249]
[1748416422071,0.40639245,108910.0,108900.0,0.2149249]
[1748416422474,0.42109541,108910.0,108900.0,0.2149249]
[1748416425167,0.4229441,108910.0,108900.0,0.2149249]
[1748416425362,0.28796522,108910.0,108900.0,1.16056502]
[1748416425565,0.28796522,108910.0,108900.0,1.19266502]
[1748416425762,0.28784522,108910.0,108900.0,1.19266502]
[1748416426062,0.28796522,108910.0,108900.0,1.24921194]
[1748416426667,0.28796522,108910.0,108900.0,1.12793602]
[1748416427072,0.28796522,108910.0,108900.0,0.94437182]
[1748416427273,0.28796522,108910.0,108900.0,1.12793602]
[1748416427675,0.28496522,108910.0,108900.0,1.12793602]
[1748416427876,0.28896522,108910.0,108900.0,1.12793602]
[1748416428070,0.28996522,108910.0,108900.0,1.12793602]
[1748416430176,0.25786522,108910.0,108900.0,1.0713891]
[1748416430479,0.26222731,108910.0,108900.0,1.0713891]
[1748416430674,0.26234731,108910.0,108900.0,1.0713891]
[1748416431272,0.25634731,108910.0,108900.0,1.0713891]
[1748416433579,0.25634731,108910.0,108900.0,1.19266502]
[1748416435076,0.25634731,108910.0,108900.0,0.83186502]
[1748416435379,0.25634731,108910.0,108900.0,1.24921194]
[1748416436079,0.25634731,108910.0,108900.0,1.19266502]
[1748416436378,0.25622731,108910.0,108900.0,1.24921194]
[1748416436570,0.22534731,108910.0,108900.0,1.24921194]
[1748416436776,0.22534731,108910.0,108900.0,1.19266502]
[1748416437573,0.22534731,108910.0,108900.0,1.24914803]
[1748416441286,0.22534731,108910.0,108900.0,1.19266502]
[1748416441589,0.22534731,108910.0,108900.0,1.24918136]
[1748416442190,0.22534731,108910.0,108900.0,1.19266502]
[1748416443188,0.22534731,108910.0,108900.0,1.26318702]
[1748416444795,0.22534731,108910.0,108900.0,1.19266502]
[1748416445177,0.22534731,108910.0,108900.0,1.26318702]
[1748416446088,0.22434731,108910.0,108900.0,1.26318702]
[1748416446291,0.22422731,108910.0,108900.0,1.26318702]
[1748416446495,0.22522731,108910.0,108900.0,1.26318702]
[1748416446683,0.22534731,108910.0,108900.0,1.26318702]
[1748416446882,0.22534731,108910.0,108900.0,1.19266502]
[1748416447382,0.22534731,108910.0,108900.0,1.26318702]
[1748416447684,0.22534731,108910.0,108900.0,1.61346502]
[1748416448484,0.25844731,108910.0,108900.0,1.61346502]
[1748416451496,0.25844731,108910.0,108900.0,1.68398702]
[1748416454902,0.25844731,108910.0,108900.0,1.6607511]
[1748416455093,0.25844731,108910.0,108900.0,1.78202702]
[1748416455293,0.29004731,108910.0,108900.0,1.78202702]
[1748416457896,0.29004731,108910.0,108900.0,1.9034474]
[1748416464318,0.29004731,108910.0,108900.0,2.2642474]
[1748416467007,0.29004731,108910.0,108900.0,2.1937254]
[1748416468116,0.29004731,108910.0,108900.0,2.1936054]
[1748416470326,0.29004731,108910.0,108900.0,2.29234527]
[1748416473626,0.29004731,108910.0,108900.0,2.1936054]
[1748416483830,0.29004731,108910.0,108900.0,2.29234527]
[1748416485722,0.29004731,108910.0,108900.0,2.1936054]
[1748416487333,0.29004731,108910.0,108900.0,1.7728054]
[1748416487526,0.29004731,108910.0,108900.0,2.04007725]
[1748416487931,0.29004731,108910.0,108900.0,1.97749725]
[1748416489429,0.29004731,108910.0,108900.0,2.00757725]
[1748416489734,0.29004731,108910.0,108900.0,2.00769725]
[1748416490120,0.29004731,108910.0,108900.0,2.0785348]
[1748416493034,0.29004731,108910.0,108900.0,1.95718665]
[1748416493234,0.29004731,108910.0,108900.0,2.0785348]
[1748416493635,0.41139546,108910.0,108900.0,1.92714665]
[1748416493827,0.41139546,108910.0,108900.0,2.0484948]
[1748416494228,0.29004731,108910.0,108900.0,2.0484948]
[1748416495836,0.29004731,108910.0,108900.0,2.0483748]
[1748416496036,0.29004731,108910.0,108900.0,2.0484948]
[1748416496235,0.29004731,108910.0,108900.0,2.0483348]
[1748416496436,0.29004731,108910.0,108900.0,2.0482148]
[1748416496642,0.29004731,108910.0,108900.0,2.0483348]
[1748416497640,0.29004731,108910.0,108900.0,2.0799348]
[1748416497938,0.29004731,108910.0,108900.0,1.6592148]
[1748416498245,0.29004731,108910.0,108900.0,2.0483348]
[1748416499940,0.29004731,108910.0,108900.0,1.3267348]
[1748416500140,0.29004731,108910.0,108900.0,2.0483348]
[1748416500341,0.29004731,108910.0,108900.0,2.0800348]
[1748416501132,0.29004731,108910.0,108900.0,2.0483348]
[1748416502433,0.10649971,108910.0,108900.0,2.0483348]
[1748416502630,0.07489971,108910.0,108900.0,2.26448295]
[1748416502838,0.25832711,108910.0,108900.0,2.26448295]
[1748416503231,0.25844711,108910.0,108900.0,2.26448295]
[1748416503430,0.07489971,108910.0,108900.0,2.26448295]
[1748416504734,0.04179971,108910.0,108900.0,2.26448295]
[1748416505028,0.04167971,108910.0,108900.0,2.26448295]
[1748416505233,0.04179971,108910.0,108900.0,2.26448295]
[1748416505539,0.04179971,108910.0,108900.0,2.1936454]
[1748416506542,0.04179971,108910.0,108900.0,2.29238527]
[1748416506736,0.04179971,108910.0,108900.0,2.04968897]
[1748416506936,0.04179971,108910.0,108900.0,2.29238527]
[1748416507540,0.01039971,108910.0,108900.0,2.46105703]
[1748416507840,0.01039971,108910.0,108900.0,2.36231716]
[1748416508143,0.01039971,108910.0,108900.0,2.36229624]
[1748416508337,0.04079971,108910.0,108900.0,2.36229624]
[1748416508942,0.04067971,108910.0,108900.0,2.31499355]
[1748416509143,0.04079971,108910.0,108900.0,2.31499355]
[1748416509339,0.03979971,108910.0,108900.0,2.41406018]
[1748416509538,0.03979971,108910.0,108900.0,2.29371203]
[1748416510031,0.03879971,108910.0,108900.0,2.29471203]
[1748416513643,0.03879971,108910.0,108900.0,2.1956054]
[1748416513837,0.03879971,108910.0,108900.0,2.29471203]
[1748416514645,0.06989971,108910.0,108900.0,2.29471203]
[1748416514949,0.06989971,108910.0,108900.0,2.1956054]
[1748416515337,0.06989971,108910.0,108900.0,2.29471203]
[1748416515542,0.37479506,108910.0,108900.0,1.53329573]
[1748416515736,0.40669506,108910.0,108900.0,1.65784388]
[1748416515943,0.40669506,108910.0,108900.0,2.07840388]
[1748416516146,0.40669506,108910.0,108900.0,2.07852388]
[1748416516341,0.40669506,108910.0,108900.0,2.07840388]
[1748416516550,0.28534691,108910.0,108900.0,2.14926313]
[1748416516748,0.28534691,108910.0,108900.0,2.0501565]
[1748416516950,0.28634691,108910.0,108900.0,2.0481565]
[1748416517247,0.28734691,108910.0,108900.0,2.0481565]
[1748416518246,0.40869506,108910.0,108900.0,2.0481565]
[1748416519148,0.40869506,108910.0,108900.0,1.40812835]
[1748416519355,0.40869506,108910.0,108900.0,2.0480365]
[1748416519651,0.40869506,108910.0,108900.0,2.0481565]
[1748416520850,0.40869506,108910.0,108900.0,1.92680835]
[1748416521051,0.40869506,108910.0,108900.0,2.0481565]
[1748416521247,0.40869506,108910.0,108900.0,1.6274765]
[1748416521451,0.40869506,108910.0,108900.0,2.0481565]
[1748416526451,0.40869506,108910.0,108900.0,1.6274765]
[1748416526656,0.40869506,108910.0,108900.0,2.0481165]
[1748416527557,0.40869506,108910.0,108900.0,1.92676835]
[1748416527850,0.40869506,108910.0,108900.0,2.0481165]
[1748416532857,0.40869506,108910.0,108900.0,2.0479565]
[1748416533263,0.40869506,108910.0,108900.0,2.0480765]
[1748416534061,0.40869506,108910.0,108900.0,1.32252415]
[1748416534258,0.40869506,108910.0,108900.0,0.60092415]
[1748416534457,0.53004321,108910.0,108900.0,0.9508249]
[1748416534758,0.53004321,108910.0,108900.0,1.00742288]
[1748416534759,0.40869506,108910.0,108900.0,1.00742288]
[1748416534965,0.40869506,108910.0,108900.0,1.19086708]
[1748416535166,0.40869506,108910.0,108900.0,1.19098708]
[1748416535362,0.40869506,108910.0,108900.0,1.19086708]
[1748416535666,0.40869506,108910.0,108900.0,1.19098708]
[1748416536559,0.40869506,108910.0,108900.0,1.1343891]
[1748416537059,0.40869506,108910.0,108900.0,1.25573725]
[1748416537060,0.28734691,108910.0,108900.0,1.25573725]
[1748416537266,0.40869506,108910.0,108900.0,1.67313523]
[1748416538253,0.40869506,108910.0,108900.0,1.61653725]
[1748416538662,0.40869506,108910.0,108900.0,1.4951891]
[1748416543376,0.40869506,108910.0,108900.0,1.1343891]
[1748416543577,0.40869506,108910.0,108900.0,1.4951891]
[1748416544068,0.40869506,108910.0,108900.0,1.61653725]
[1748416544268,0.40869506,108910.0,108900.0,1.64733725]
[1748416544468,0.40857506,108910.0,108900.0,1.71353725]
[1748416544780,0.40869506,108910.0,108900.0,1.71353725]
[1748416545476,0.40869506,108910.0,108900.0,1.53705629]
[1748416546677,0.40869506,108910.0,108900.0,1.13518394]
[1748416546880,0.40869506,108910.0,108900.0,1.13506394]
[1748416547178,0.40869506,108910.0,108900.0,1.31874824]
[1748416547564,0.40869506,108910.0,108900.0,1.13518394]
[1748416547966,0.40869506,108910.0,108900.0,1.13506394]
[1748416548272,0.40869506,108910.0,108900.0,1.31874824]
[1748416549982,0.40869506,108910.0,108900.0,0.95794824]
[1748416550281,0.40869506,108910.0,108900.0,1.31874824]
[1748416551285,0.40869506,108910.0,108900.0,1.34934824]
[1748416551776,0.40869506,108910.0,108900.0,1.40594622]
[1748416552085,0.40869506,108910.0,108900.0,1.19178192]
[1748416552282,0.40869506,108910.0,108900.0,0.67302192]
[1748416552486,0.40869506,108910.0,108900.0,1.37518622]
[1748416552681,0.40869506,108910.0,108900.0,1.01450622]
[1748416554586,0.40869506,108910.0,108900.0,0.49590622]
[1748416554781,0.40869506,108910.0,108900.0,1.01450622]
[1748416555284,0.28734691,108910.0,108900.0,1.01450622]
[1748416555479,0.40869506,108910.0,108900.0,1.01450622]
[1748416555680,0.40869506,108910.0,108900.0,1.04590622]
[1748416556190,0.40869506,108910.0,108900.0,1.01450622]
[1748416556687,0.41767647,108910.0,108900.0,0.83094192]
[1748416557093,0.40869506,108910.0,108900.0,0.83094192]
[1748416557388,0.40869506,108910.0,108900.0,1.01450622]
[1748416557887,0.40869506,108910.0,108900.0,1.04490622]
[1748416559591,0.40869506,108910.0,108900.0,1.07520622]
[1748416559791,0.40869506,108910.0,108900.0,1.10630622]
[1748416561181,0.40869506,108910.0,108900.0,1.46710622]
[1748416563591,0.44734504,108910.0,108900.0,1.46710622]
[1748416563991,0.44734549,108910.0,108900.0,1.46710622]
[1748416565683,0.44734549,108910.0,108900.0,1.10630622]
[1748416565894,0.44734549,108910.0,108900.0,1.46710622]
[1748416568188,0.44734746,108910.0,108900.0,1.46710622]
[1748416570899,0.44734746,108910.0,108900.0,0.68566622]
[1748416571099,0.44734746,108910.0,108900.0,1.10630622]
[1748416572400,0.44734746,108910.0,108900.0,1.46710622]
[1748416574793,0.40869506,108910.0,108900.0,1.46710622]
[1748416575309,0.40869506,108910.0,108900.0,1.10630622]
[1748416575494,0.40869506,108910.0,108900.0,1.46710622]
[1748416576398,0.40869506,108910.0,108900.0,1.10630622]
[1748416576893,0.40869506,108910.0,108900.0,1.46710622]
[1748416578004,0.40869506,108910.0,108900.0,1.10630622]
[1748416580499,0.28734691,108910.0,108900.0,1.10630622]
[1748416580701,0.40869506,108910.0,108900.0,1.10630622]
[1748416580906,0.40869506,108910.0,108900.0,0.68566622]
[1748416581104,0.40869506,108910.0,108900.0,1.10626622]